bitfinex/quotes_BTCUSD_20251113
["timestamp","ask_amount","ask_price","bid_price","bid_amount"]
[1763061694038,0.08484516,98779.0,98745.0,0.20254043]
[1763061694230,0.08415654,98779.0,98751.0,0.20252867]
[1763061694433,0.08415654,98779.0,98749.0,0.24967192]
[1763061694434,0.08348343,98779.0,98750.0,0.88474266]
[1763061694631,0.08245365,98779.0,98750.0,0.88674266]
[1763061694836,0.07994149,98779.0,98750.0,0.88474266]
[1763061695033,0.09750356,98799.0,98760.0,0.88474266]
[1763061695234,0.09750356,98799.0,98761.0,0.09952]
[1763061695235,0.09715317,98799.0,98761.0,0.09952]
[1763061695438,0.09746863,98800.0,98771.0,0.323]
[1763061695779,0.32265327,98817.0,98780.0,0.89486616]
[1763061695916,0.31984229,98817.0,98780.0,1.0978016]
[1763061696124,0.31913428,98817.0,98780.0,1.0978016]
[1763061696319,0.0976449,98819.0,98782.0,0.09816915]
[1763061696320,0.09552344,98819.0,98782.0,0.09816915]
[1763061696520,0.09482356,98819.0,98790.0,0.88474266]
[1763061696725,0.09377805,98819.0,98790.0,0.88474266]
[1763061696955,0.09275245,98819.0,98790.0,1.08719025]
[1763061697176,0.09747537,98804.0,98788.0,0.09952]
[1763061697385,0.09240098,98819.0,98794.0,0.20244082]
[1763061697599,0.09234071,98819.0,98790.0,0.88474266]
[1763061697799,0.09296,98831.0,98791.0,0.09952]
[1763061697800,0.04484832,98821.0,98791.0,0.09952]
[1763061698033,0.04484832,98821.0,98786.0,0.323]
[1763061698034,0.19079525,98820.0,98786.0,0.323]
[1763061698250,0.001,98819.0,98790.0,0.001]
[1763061698476,0.092626,98818.0,98790.0,0.001]
[1763061698589,0.092626,98818.0,98780.0,0.88520815]
[1763061698590,0.09011008,98818.0,98780.0,0.88520815]
[1763061698790,0.0890932,98818.0,98780.0,0.88520815]
[1763061699007,0.08659267,98818.0,98780.0,0.89533165]
[1763061699227,0.08624479,98818.0,98791.0,0.001]
[1763061699446,0.08588941,98818.0,98791.0,0.001]
[1763061699654,0.08452807,98818.0,98780.0,0.00046549]
[1763061699808,0.07574855,98818.0,98790.0,0.001]
[1763061700015,0.41947221,98820.0,98790.0,0.001]
[1763061700224,0.41912249,98820.0,98790.0,0.98426266]
[1763061700432,0.41846365,98820.0,98790.0,0.88474266]
[1763061700661,0.41846365,98820.0,98791.0,0.001]
[1763061700662,0.41742218,98820.0,98791.0,0.001]
[1763061700863,0.41640547,98820.0,98790.0,0.88474266]
[1763061701247,0.41469022,98820.0,98790.0,0.88474266]
[1763061701381,0.4128939,98820.0,98790.0,0.88474266]
[1763061701583,0.41184767,98820.0,98780.0,0.89486616]
[1763061701926,0.40803093,98820.0,98790.0,0.001]
[1763061702134,0.09188081,98819.0,98790.0,0.001]
[1763061702334,5.6e-07,98791.0,98780.0,0.88474266]
[1763061702556,0.60590594,98820.0,98780.0,0.88474266]
[1763061702774,0.40487393,98820.0,98780.0,0.89486616]
[1763061702985,0.40377006,98820.0,98780.0,0.89486616]
[1763061703254,0.40271531,98820.0,98781.0,0.20246687]
[1763061703454,0.40203826,98820.0,98790.0,0.21357069]
[1763061703670,0.40135381,98820.0,98790.0,0.88574266]
[1763061703902,0.39849214,98820.0,98790.0,0.001]
[1763061704105,0.39533728,98820.0,98790.0,0.001]
[1763061704315,0.08949,98819.0,98790.0,0.001]
[1763061704528,0.08915699,98819.0,98780.0,0.88474266]
[1763061704756,0.08845421,98819.0,98780.0,0.88474266]
[1763061704974,0.0852429,98819.0,98780.0,0.88474266]
[1763061705159,0.08386188,98819.0,98780.0,0.88474266]
[1763061705400,0.08316948,98819.0,98780.0,0.88474266]
[1763061705679,0.08280393,98819.0,98780.0,0.88474266]
[1763061705901,0.08109039,98819.0,98780.0,0.88574266]
[1763061706103,0.0800377,98819.0,98780.0,0.88574266]
[1763061706326,0.07864306,98819.0,98780.0,0.88574266]
[1763061706531,0.07830842,98819.0,98780.0,0.88574266]
[1763061706655,0.0758355,98819.0,98780.0,0.88574266]
[1763061706852,0.07479438,98819.0,98780.0,0.81074266]
[1763061707075,0.07339383,98819.0,98780.0,0.001]
[1763061707283,0.07339383,98819.0,98780.0,0.88574266]
[1763061707284,0.0687681,98819.0,98780.0,0.88574266]
[1763061707458,0.06841066,98819.0,98780.0,0.88574266]
[1763061707661,0.06769207,98819.0,98780.0,0.88574266]
[1763061707989,0.06593516,98819.0,98780.0,0.88574266]
[1763061708251,0.06456181,98819.0,98780.0,0.001]
[1763061708454,0.01554214,98810.0,98781.0,0.09952]
[1763061708686,0.01483798,98810.0,98781.0,0.09952]
[1763061708890,0.01375272,98810.0,98781.0,0.09952]
[1763061709108,0.386884,98819.0,98781.0,0.09952]
[1763061709325,0.5,98830.0,98809.0,0.88474266]
[1763061709326,0.04485438,98828.0,98809.0,0.88474266]
[1763061709533,0.04485438,98828.0,98782.0,0.09816915]
[1763061709534,0.04270104,98828.0,98784.0,0.04341874]
[1763061709785,0.04270104,98828.0,98783.0,0.323]
[1763061709786,0.09781441,98821.0,98791.0,0.323]
[1763061710033,0.09533129,98821.0,98791.0,0.323]
[1763061710242,0.09533129,98821.0,98781.0,0.001]
[1763061710243,0.3222798,98819.0,98781.0,0.001]
[1763061710456,0.32156503,98819.0,98790.0,0.88474266]
[1763061710667,0.32166821,98819.0,98790.0,0.88474266]
[1763061710878,0.32064102,98819.0,98790.0,0.88474266]
[1763061711092,0.00011796,98819.0,98790.0,0.88474266]
[1763061711311,0.09341772,98821.0,98791.0,0.09952]
[1763061711550,0.09235963,98821.0,98791.0,0.09998511]
[1763061711765,0.03046898,98820.0,98791.0,0.00046511]
[1763061711986,0.02726129,98820.0,98791.0,0.00046511]
[1763061712205,0.02621045,98820.0,98791.0,0.00046511]
[1763061712416,0.01519129,98813.0,98791.0,0.00046511]
[1763061712654,0.01485741,98813.0,98791.0,0.00046511]
[1763061712879,0.01308987,98813.0,98791.0,0.00046511]
[1763061713114,0.04200697,98828.0,98800.0,0.88474266]
[1763061713115,0.04168994,98828.0,98800.0,0.88474266]
[1763061713359,0.01814148,98827.0,98800.0,0.88474266]
[1763061713544,0.04100679,98828.0,98800.0,0.88474266]
[1763061713809,0.04100679,98828.0,98792.0,0.09952]
[1763061713810,0.04032467,98828.0,98790.0,0.89738849]
[1763061714014,0.03925988,98828.0,98801.0,0.09952]
[1763061714223,0.03823996,98828.0,98800.0,0.88474266]
[1763061714405,0.03685694,98828.0,98805.0,0.20241792]
[1763061714598,0.5,98830.0,98808.0,0.20241141]
[1763061714829,0.49931503,98830.0,98806.0,0.20241623]
[1763061714962,0.49951612,98830.0,98803.0,0.20242254]
[1763061715167,0.49785672,98830.0,98802.0,0.20242483]
[1763061715369,0.49718781,98830.0,98810.0,0.88474266]
[1763061715582,0.49682462,98830.0,98810.0,0.88474266]
[1763061715795,0.49547626,98830.0,98811.0,0.04548]
[1763061716024,0.4993014,98830.0,98811.0,0.04548]
[1763061716241,0.49929219,98830.0,98811.0,0.04548]
[1763061716440,0.49860771,98830.0,98811.0,0.04548]
[1763061716651,0.49966408,98830.0,98812.0,0.00252335]
[1763061716865,0.49832657,98830.0,98812.0,0.00252335]
[1763061717069,0.49930601,98830.0,98829.0,0.03758]
[1763061717204,0.49789986,98830.0,98829.0,0.03758]
[1763061717406,0.49894921,98830.0,98829.0,0.03758]
[1763061717648,0.49999921,98830.0,98829.0,0.03758]
[1763061717967,0.49396915,98830.0,98811.0,0.04548]
[1763061718172,0.49327454,98830.0,98829.0,0.001]
[1763061718401,0.48973068,98830.0,98829.0,0.001]
[1763061718603,0.48589791,98830.0,98829.0,0.001]
[1763061718806,0.54223002,98830.0,98829.0,0.001]
[1763061719005,0.53983992,98830.0,98829.0,0.001]
[1763061719211,0.63139645,98830.0,98829.0,0.001]
[1763061719413,0.62859742,98830.0,98829.0,0.001]
[1763061719621,0.62198417,98830.0,98829.0,0.001]
[1763061719829,0.62437349,98830.0,98829.0,0.001]
[1763061720042,0.55829634,98830.0,98829.0,0.001]
[1763061720281,0.55723922,98830.0,98829.0,0.001]
[1763061720482,0.87659432,98830.0,98829.0,0.001]
[1763061720696,0.87659432,98830.0,98768.0,0.07132767]
[1763061720697,0.323,98819.0,98768.0,0.07132767]
[1763061720909,0.04341874,98829.0,98760.0,0.60031976]
[1763061720910,0.1220979,98794.0,98772.0,0.00046511]
[1763061721115,0.12140981,98794.0,98772.0,0.00046511]
[1763061721329,0.60031976,98800.0,98772.0,0.00046511]
[1763061721330,0.030542,98800.0,98780.0,0.60031976]
[1763061721586,0.02982746,98800.0,98799.0,0.05295]
[1763061721827,0.03750655,98800.0,98799.0,0.05295]
[1763061722043,0.03716251,98800.0,98799.0,0.37068]
[1763061722253,0.03659445,98800.0,98799.0,0.37298]
[1763061722457,0.03377025,98800.0,98799.0,0.37298]
[1763061722660,0.03307321,98800.0,98799.0,0.37298]
[1763061722874,0.49299122,98800.0,98799.0,0.37298]
[1763061723070,0.49196009,98800.0,98799.0,0.04768]
[1763061723323,0.48909258,98800.0,98799.0,0.05068]
[1763061723523,0.45925002,98800.0,98799.0,0.05468]
[1763061723730,0.45658311,98800.0,98799.0,0.25733119]
[1763061723930,0.45860417,98800.0,98799.0,0.0549]
[1763061724140,0.45489706,98800.0,98799.0,0.25333119]
[1763061724275,0.45382939,98800.0,98799.0,0.25733119]
[1763061724481,0.45276149,98800.0,98799.0,0.65655568]
[1763061724710,0.45241598,98800.0,98799.0,0.71695568]
[1763061724907,0.24322947,98800.0,98799.0,0.65660568]
[1763061725261,0.0955,98836.0,98822.0,0.20238263]
[1763061725262,0.01552992,98836.0,98822.0,0.20238263]
[1763061725441,0.01417427,98836.0,98835.0,0.10061]
[1763061725701,0.01980296,98851.0,98822.0,0.0836]
[1763061725899,0.01678191,98850.0,98830.0,0.60031976]
[1763061726103,0.01766319,98851.0,98830.0,0.60031976]
[1763061726310,0.01766319,98851.0,98830.0,0.8026859]
[1763061726311,0.01660555,98851.0,98830.0,0.8026859]
[1763061726526,0.04523503,98856.0,98840.0,0.60031976]
[1763061726722,0.04467455,98856.0,98833.0,0.20236039]
[1763061726930,0.09816915,98867.0,98832.0,0.04108]
[1763061727142,0.01089516,98866.0,98837.0,0.20235274]
[1763061727352,0.00983986,98866.0,98837.0,0.09816915]
[1763061727557,0.00732265,98866.0,98838.0,0.09593]
[1763061727783,0.00626802,98866.0,98840.0,0.60031976]
[1763061727995,0.00626802,98866.0,98838.0,0.09852943]
[1763061727996,0.00590254,98866.0,98850.0,0.60031976]
[1763061728199,0.0444026,98877.0,98865.0,0.04673]
[1763061728378,0.04189444,98877.0,98865.0,0.04673]
[1763061728604,0.04084841,98877.0,98865.0,0.01373]
[1763061728806,0.04016505,98877.0,98856.0,0.02558]
[1763061729119,0.03877801,98877.0,98856.0,0.02558]
[1763061729421,0.03739852,98877.0,98866.0,0.00259943]
[1763061729548,0.06938872,98877.0,98866.0,0.00259943]
[1763061729905,0.03733872,98877.0,98866.0,0.00259943]
[1763061730081,0.034513,98877.0,98866.0,0.00259943]
[1763061730294,0.02926507,98867.0,98866.0,0.00259943]
[1763061730607,0.02820113,98867.0,98866.0,0.00259943]
[1763061730841,0.02750821,98867.0,98866.0,0.00259943]
[1763061731044,0.04341874,98876.0,98866.0,0.00259943]
[1763061731258,0.0009385,98867.0,98866.0,0.00259943]
[1763061731470,0.3228849,98875.0,98866.0,0.00259943]
[1763061731629,0.0189,98867.0,98866.0,0.00259943]
[1763061731830,0.01818,98867.0,98866.0,0.00259943]
[1763061732029,0.01818,98867.0,98809.0,0.09509]
[1763061732030,0.2,98850.0,98798.0,0.07726497]
[1763061732270,0.2,98850.0,98799.0,0.0482454]
[1763061732271,0.09744909,98834.0,98799.0,0.0482454]
[1763061732583,0.60031976,98830.0,98799.0,0.0482454]
[1763061732793,0.09388625,98834.0,98799.0,0.0482454]
[1763061732939,0.09354962,98834.0,98800.0,0.60031976]
[1763061733147,0.01552891,98826.0,98800.0,0.21254966]
[1763061733352,0.01552891,98826.0,98800.0,0.61044121]
[1763061733353,0.01448333,98826.0,98800.0,0.61044121]
[1763061733553,0.01166901,98826.0,98801.0,0.2024271]
[1763061733753,0.01166901,98826.0,98799.0,0.0482454]
[1763061733754,0.0106487,98826.0,98799.0,0.0482454]
[1763061733979,0.0106487,98826.0,98800.0,0.69534976]
[1763061734182,0.00959798,98826.0,98810.0,0.60031976]
[1763061734358,0.00889456,98826.0,98810.0,0.60031976]
[1763061734582,0.00065845,98834.0,98825.0,0.05351]
[1763061734783,0.01516907,98838.0,98826.0,0.20237589]
[1763061735129,0.01481779,98838.0,98826.0,0.09257]
[1763061735352,0.01407411,98845.0,98827.0,0.09593]
[1763061735559,0.01337512,98845.0,98830.0,0.60031976]
[1763061735763,0.00928,98871.0,98831.0,0.09593]
[1763061735764,0.09781698,98864.0,98831.0,0.09593]
[1763061735936,0.10640292,98864.0,98831.0,0.09593]
[1763061736140,0.10427804,98864.0,98831.0,0.09593]
[1763061736341,0.32229703,98863.0,98833.0,0.20236054]
[1763061736547,0.0939248,98864.0,98840.0,0.60031976]
[1763061736754,3.872e-05,98890.0,98871.0,0.0005]
[1763061736962,0.03253,98898.0,98872.0,0.04894]
[1763061737172,0.03217917,98898.0,98872.0,0.04894]
[1763061737369,0.03112335,98898.0,98872.0,0.04894]
[1763061737571,0.00023389,98876.0,98864.0,0.09236]
[1763061737782,0.00999,98897.0,98864.0,0.09236]
[1763061737783,0.00950771,98897.0,98864.0,0.09236]
[1763061737983,0.001,98890.0,98864.0,0.16760715]
[1763061738199,0.00029107,98890.0,98889.0,0.00773]
[1763061738448,0.04388642,98918.0,98889.0,0.00773]
[1763061738648,0.01850102,98917.0,98889.0,0.00773]
[1763061738856,0.04139733,98918.0,98889.0,0.00773]
[1763061739095,0.09816915,98911.0,98871.0,0.323]
[1763061739291,0.00490405,98910.0,98876.0,0.09816915]
[1763061739499,0.00490405,98910.0,98873.0,0.323]
[1763061739500,0.00387873,98910.0,98873.0,0.323]
[1763061739700,0.00283364,98910.0,98889.0,0.002]
[1763061739901,0.00179612,98910.0,98889.0,0.002]
[1763061740078,0.09747432,98911.0,98889.0,0.002]
[1763061740283,0.02548288,98890.0,98889.0,0.002]
[1763061740609,0.02227341,98890.0,98889.0,0.002]
[1763061740824,0.0215904,98890.0,98871.0,0.00013945]
[1763061741051,0.323,98880.0,98871.0,0.00013945]
[1763061741294,0.04305762,98879.0,98871.0,0.00013945]
[1763061741501,0.04020078,98879.0,98871.0,0.00113945]
[1763061741639,0.03921028,98879.0,98871.0,0.00113945]
[1763061741843,0.03779911,98879.0,98871.0,0.00013945]
[1763061742236,0.03710442,98879.0,98871.0,0.00113945]
[1763061742440,0.03640576,98879.0,98871.0,0.00013945]
[1763061742649,0.03498122,98879.0,98871.0,0.00013945]
[1763061742872,0.00064957,98879.0,98871.0,0.00013945]
[1763061743073,1.99822315,98882.0,98871.0,0.00013945]
[1763061743272,0.09782879,98883.0,98871.0,0.00013945]
[1763061743273,0.32229233,98881.0,98871.0,0.00013945]
[1763061743451,0.32125495,98881.0,98850.0,0.57360921]
[1763061743657,0.32053846,98881.0,98850.0,0.57360921]
[1763061743810,0.31771907,98881.0,98845.0,0.09593]
[1763061743996,0.09748452,98883.0,98850.0,0.61043609]
[1763061744196,0.09676154,98883.0,98851.0,0.323]
[1763061744442,0.09676154,98883.0,98851.0,0.41893]
[1763061744443,0.00030818,98879.0,98851.0,0.41893]
[1763061744615,0.09603289,98883.0,98851.0,0.41893]
[1763061744949,0.09463105,98883.0,98851.0,0.41893]
[1763061745173,0.09428023,98883.0,98851.0,0.41893]
[1763061745312,0.09321176,98883.0,98851.0,0.09593]
[1763061745511,0.09041154,98883.0,98851.0,5e-05]
[1763061745710,0.08755583,98883.0,98851.0,5e-05]
[1763061745955,0.79997711,98880.0,98851.0,5e-05]
[1763061746157,0.08684663,98883.0,98851.0,5e-05]
[1763061746158,0.08684663,98883.0,98851.0,0.0001]
[1763061746357,0.08578732,98883.0,98851.0,0.0001]
[1763061746733,0.08262467,98883.0,98851.0,0.0001]
[1763061746942,0.32230837,98879.0,98851.0,0.0001]
[1763061747193,0.32160057,98879.0,98851.0,0.0001]
[1763061747417,0.09782116,98868.0,98851.0,0.0001]
[1763061747634,0.09676586,98868.0,98851.0,0.0001]
[1763061747895,0.0200465,98867.0,98851.0,0.0001]
[1763061748114,0.01861737,98867.0,98851.0,0.0001]
[1763061748341,0.0146557,98867.0,98851.0,0.0001]
[1763061748542,0.09676586,98868.0,98851.0,0.0011]
[1763061748543,0.09642654,98868.0,98851.0,0.0011]
[1763061748660,0.09501955,98868.0,98851.0,0.0001]
[1763061748904,0.09397403,98868.0,98851.0,0.0001]
[1763061749120,0.09146556,98868.0,98851.0,0.0031]
[1763061749344,0.09038181,98868.0,98851.0,0.0031]
[1763061749564,0.00663,98852.0,98851.0,0.0031]
[1763061749782,0.00558389,98852.0,98851.0,0.0021]
[1763061749993,0.00451476,98852.0,98851.0,0.0031]
[1763061750191,0.00414924,98852.0,98851.0,0.0011]
[1763061750520,0.00312568,98852.0,98851.0,0.001]
[1763061750736,0.00024418,98852.0,98851.0,0.001]
[1763061750940,0.02513311,98860.0,98829.0,0.00164764]
[1763061751145,0.02432118,98860.0,98851.0,0.002]
[1763061751345,0.02359309,98860.0,98851.0,0.0025]
[1763061751555,0.02256308,98860.0,98851.0,0.0045]
[1763061751763,0.09782727,98853.0,98851.0,0.0045]
[1763061751965,2.38459733,98852.0,98851.0,0.0005]
[1763061752206,0.36641874,98846.0,98829.0,0.00164764]
[1763061752407,0.06620682,98830.0,98829.0,0.00164764]
[1763061752567,0.06515022,98830.0,98829.0,0.00164764]
[1763061752769,0.06412731,98830.0,98829.0,0.00164764]
[1763061752970,0.0635251,98830.0,98829.0,0.00164764]
[1763061753167,0.06282423,98830.0,98829.0,0.00164764]
[1763061753408,0.06033117,98830.0,98829.0,0.00164764]
[1763061753697,0.01034,98831.0,98829.0,0.00211304]
[1763061753698,0.00296874,98831.0,98829.0,0.00211304]
[1763061753995,0.00120591,98831.0,98829.0,0.00211304]
[1763061754150,0.000863,98831.0,98829.0,0.00211304]
[1763061754576,0.00417,98848.0,98829.0,0.00211304]
[1763061755026,0.00417,98848.0,98829.0,0.00311304]
[1763061755150,0.323,98852.0,98829.0,0.00211304]
[1763061755350,0.323,98859.0,98829.0,0.00311304]
[1763061755601,0.323,98859.0,98829.0,0.00511304]
[1763061755813,0.01994678,98860.0,98829.0,0.00311304]
[1763061755965,0.01994678,98860.0,98830.0,0.09831]
[1763061756167,0.01994678,98860.0,98830.0,0.10842838]
[1763061756368,0.01994678,98860.0,98830.0,0.31079403]
[1763061756568,0.60031976,98880.0,98831.0,0.09816915]
[1763061756789,0.00973,98882.0,98831.0,0.09816915]
[1763061756790,0.00973,98882.0,98839.0,0.20234817]
[1763061756990,0.60031976,98880.0,98840.0,0.69862976]
[1763061757192,0.323,98879.0,98840.0,0.09831]
[1763061757648,0.03618,98867.0,98840.0,0.02531]
[1763061757819,0.03618,98867.0,98832.0,0.04987]
[1763061758618,0.02141863,98867.0,98832.0,0.04987]
[1763061758819,0.02141863,98867.0,98840.0,0.001]
[1763061759697,0.60031976,98860.0,98840.0,0.001]
[1763061759866,0.03593,98841.0,98840.0,0.001]
[1763061760112,0.03593,98841.0,98829.0,0.00221304]
[1763061760479,0.03593,98841.0,98832.0,0.001]
[1763061760707,0.01587212,98839.0,98833.0,0.04987]
[1763061760912,0.01587212,98839.0,98829.0,0.00221304]
[1763061761335,0.00091,98874.0,98838.0,0.0502]
[1763061761671,0.0158719,98850.0,98838.0,0.0502]
[1763061761905,0.60031976,98880.0,98840.0,0.61043712]
[1763061762122,0.60031976,98880.0,98839.0,0.35208]
[1763061762123,0.01587068,98850.0,98839.0,0.35208]
[1763061762401,0.00751,98869.0,98840.0,0.20234722]
[1763061762578,0.01587043,98856.0,98840.0,0.20234722]
[1763061762783,0.01587043,98856.0,98855.0,0.03306]
[1763061762962,0.00751,98886.0,98855.0,0.03306]
[1763061763166,0.42116915,98889.0,98855.0,0.03306]
[1763061763167,0.01587027,98866.0,98855.0,0.03306]
[1763061763970,0.01587027,98866.0,98855.0,0.03606]
[1763061764237,0.01587027,98866.0,98855.0,0.03306]
[1763061764668,0.01587027,98866.0,98856.0,0.04661]
[1763061764903,0.01587027,98866.0,98865.0,0.00258]
[1763061765122,0.01587027,98866.0,98855.0,0.00967]
[1763061765564,0.01587027,98866.0,98855.0,0.00972]
[1763061765805,0.02572,98874.0,98855.0,0.08332471]
[1763061766029,0.0158692,98872.0,98855.0,0.00777]
[1763061766284,0.0158692,98872.0,98855.0,0.08073882]
[1763061766521,0.0158692,98872.0,98855.0,0.00482]
[1763061766723,0.0158692,98872.0,98865.0,0.003]
[1763061766916,0.0158692,98872.0,98856.0,0.002]
[1763061767581,0.0158692,98872.0,98871.0,0.21901378]
[1763061767791,0.0158692,98872.0,98871.0,0.38298]
[1763061767988,0.0158692,98872.0,98871.0,0.36625]
[1763061768206,0.00013932,98874.0,98872.0,0.20228173]
[1763061768655,0.00013932,98874.0,98873.0,0.01013]
[1763061769663,0.01586659,98904.0,98875.0,0.52527355]
[1763061769953,0.01586659,98904.0,98884.0,0.20363719]
[1763061770149,0.01586659,98904.0,98884.0,0.52663719]
[1763061770355,0.01586659,98904.0,98884.0,0.323]
[1763061770719,0.01586659,98904.0,98884.0,0.42116915]
[1763061771159,0.01586659,98904.0,98884.0,0.42416915]
[1763061771314,0.0002,98920.0,98884.0,0.42416915]
[1763061771757,0.0002,98920.0,98884.0,0.34916915]
[1763061771958,0.0002,98920.0,98884.0,0.10116915]
[1763061772285,0.0002,98920.0,98890.0,0.01011224]
[1763061772487,0.00033945,98920.0,98902.0,0.30038868]
[1763061772686,0.00033945,98920.0,98893.0,0.20223878]
[1763061772886,0.00033945,98920.0,98902.0,0.07559911]
[1763061773118,0.00046761,98903.0,98894.0,0.00165]
[1763061773337,0.00033945,98920.0,98899.0,0.09816915]
[1763061773730,0.00033945,98920.0,98894.0,0.00165]
[1763061774345,0.00033945,98920.0,98894.0,0.07836985]
[1763061774754,0.00033945,98920.0,98888.0,0.323]
[1763061774960,0.00033945,98920.0,98895.0,0.09831]
[1763061775361,0.00033945,98920.0,98900.0,0.60031976]
[1763061775596,0.00033945,98920.0,98899.0,0.001]
[1763061775802,0.00033945,98920.0,98901.0,0.09816915]
[1763061776256,0.00033945,98920.0,98905.0,0.20221282]
[1763061776462,0.00033945,98920.0,98902.0,0.09831]
[1763061776672,0.00033945,98920.0,98903.0,0.09831]
[1763061776881,0.04481756,98934.0,98903.0,0.09831]
[1763061777094,0.04481756,98934.0,98903.0,0.09844945]
[1763061777293,0.04481756,98934.0,98903.0,0.30066701]
[1763061777513,0.323,98939.0,98933.0,0.01752]
[1763061777718,0.0002,98940.0,98933.0,0.01752]
[1763061778346,0.06655,98934.0,98901.0,0.323]
[1763061778551,0.0002,98940.0,98901.0,0.323]
[1763061778552,0.0002,98940.0,98914.0,0.09816915]
[1763061778791,0.0002,98940.0,98920.0,0.60031976]
[1763061778996,0.0002,98940.0,98939.0,0.06047]
[1763061779201,0.0002,98940.0,98925.0,0.20217223]
[1763061779412,0.0002,98940.0,98939.0,0.06047]
[1763061779834,0.0002,98950.0,98934.0,0.09816915]
[1763061779835,0.0002,98950.0,98948.0,0.00014]
[1763061780059,0.0002,98950.0,98925.0,0.12910681]
[1763061780272,0.0002,98950.0,98939.0,0.002]
[1763061780273,0.00066465,98950.0,98939.0,0.002]
[1763061780684,0.00066465,98950.0,98925.0,0.323]
[1763061781131,0.00066465,98950.0,98948.0,0.002]
[1763061782218,0.00066465,98950.0,98925.0,0.07139]
[1763061782422,0.00066465,98950.0,98939.0,0.001]
[1763061782633,0.00066465,98950.0,98948.0,0.001]
[1763061783152,0.00066465,98950.0,98948.0,0.002]
[1763061783772,0.06502,98949.0,98948.0,0.002]
[1763061785268,0.43143874,98949.0,98948.0,0.002]
[1763061785687,0.43143874,98949.0,98892.0,0.12529429]
[1763061785688,0.04341874,98948.0,98903.0,0.323]
[1763061785889,0.09816915,98930.0,98892.0,0.07139]
[1763061786090,0.09816915,98930.0,98896.0,0.12707357]
[1763061786297,0.09381,98929.0,98893.0,0.30987]
[1763061786508,0.09381,98929.0,98890.0,0.21235579]
[1763061786713,0.09381,98929.0,98886.0,0.02152]
[1763061786923,0.2,98920.0,98885.0,0.02947]
[1763061787125,0.09381,98929.0,98885.0,0.02947]
[1763061787328,0.09816915,98915.0,98885.0,0.02947]
[1763061787470,0.09816915,98915.0,98896.0,5e-05]
[1763061787665,0.19197915,98915.0,98896.0,5e-05]
[1763061788094,0.09381,98914.0,98896.0,0.00018945]
[1763061788440,0.04948,98897.0,98896.0,0.00018945]
[1763061788857,0.09381,98914.0,98896.0,0.00018945]
[1763061788858,0.04948,98913.0,98896.0,0.00018945]
[1763061789433,0.04948,98920.0,98901.0,0.2022223]
[1763061789633,0.19197915,98939.0,98902.0,0.09816915]
[1763061789836,0.09816915,98939.0,98903.0,0.02152]
[1763061790038,0.0002,98950.0,98903.0,0.02152]
[1763061790039,0.0002,98950.0,98920.0,0.01010917]
[1763061790236,0.0002,98950.0,98921.0,0.20218153]
[1763061790437,0.0002,98950.0,98923.0,0.20217661]
[1763061790640,0.0002,98950.0,98919.0,0.02152]
[1763061790842,0.09401,98950.0,98911.0,0.323]
[1763061791042,0.09401,98950.0,98915.0,0.323]
[1763061791832,0.09401,98950.0,98920.0,0.01010917]
[1763061792250,0.00093505,98921.0,98918.0,0.20218564]
[1763061792462,0.09401,98950.0,98920.0,0.01010917]
[1763061792673,0.09401,98950.0,98926.0,0.20217122]
[1763061792939,0.0002,98950.0,98921.0,0.34452]
[1763061793229,0.0002,98950.0,98935.0,0.20215092]
[1763061793485,0.0002,98950.0,98930.0,0.323]
[1763061793759,0.0002,98950.0,98925.0,0.05390429]
[1763061794031,0.0002,98950.0,98920.0,0.08574758]
[1763061794032,0.09381,98949.0,98920.0,0.07563841]
[1763061794527,0.00066465,98950.0,98928.0,0.20216607]
[1763061794792,0.00066465,98950.0,98921.0,0.02152]
[1763061795022,0.00066465,98950.0,98922.0,0.02152]
[1763061795247,0.00066465,98950.0,98925.0,0.05390429]
[1763061795477,0.00066465,98950.0,98932.0,0.09816915]
[1763061795696,0.00066465,98950.0,98924.0,0.05390429]
[1763061796164,0.00066465,98950.0,98935.0,0.20215202]
[1763061796386,0.00066465,98950.0,98929.0,0.05390429]
[1763061796612,0.09381,98949.0,98928.0,0.05390429]
[1763061796838,0.09381,98949.0,98922.0,0.05390429]
[1763061797215,0.323,98958.0,98925.0,0.202172]
[1763061797422,0.37261931,98958.0,98924.0,0.20217505]
[1763061797628,0.01585827,98950.0,98929.0,0.20216433]
[1763061797821,0.01585827,98950.0,98926.0,0.09719]
[1763061798025,0.01585827,98950.0,98925.0,0.05390429]
[1763061798234,0.01585827,98950.0,98923.0,0.04605]
[1763061798572,0.01585827,98950.0,98924.0,0.09816915]
[1763061799269,0.01585827,98950.0,98923.0,0.04605]
[1763061799270,0.08236,98949.0,98923.0,0.04605]
[1763061799896,0.08236,98949.0,98924.0,0.20217438]
[1763061800147,0.09816915,98957.0,98925.0,0.09719]
[1763061800346,0.01889879,98956.0,98925.0,0.09719]
[1763061800549,0.09816915,98957.0,98925.0,0.09719]
[1763061800716,0.09816915,98957.0,98926.0,0.05390429]
[1763061801038,0.08236,98956.0,98927.0,0.05390429]
[1763061801179,0.08236,98956.0,98928.0,0.22607066]
[1763061801380,0.09816915,98957.0,98930.0,0.20216141]
[1763061801584,0.09816915,98957.0,98933.0,0.20215615]
[1763061801786,0.09816915,98957.0,98925.0,0.09719]
[1763061802031,0.08236,98956.0,98926.0,5e-05]
[1763061802630,0.01890385,98955.0,98926.0,5e-05]
[1763061802844,0.01890385,98954.0,98926.0,5e-05]
[1763061803043,0.01890385,98953.0,98926.0,5e-05]
[1763061803269,0.04961931,98958.0,98927.0,0.09719]
[1763061803270,0.01890385,98952.0,98927.0,0.09719]
[1763061803409,0.00013931,98958.0,98956.0,0.04325]
[1763061803945,0.0159969,98958.0,98956.0,0.04325]
[1763061804398,0.00186943,98957.0,98956.0,0.04325]
[1763061805156,0.00186943,98957.0,98956.0,0.14044]
[1763061805368,0.00186943,98957.0,98956.0,0.04325]
[1763061806170,0.00186943,98957.0,98956.0,0.24536002]
[1763061806638,0.00186943,98957.0,98956.0,0.04325]
[1763061807083,0.00186943,98957.0,98956.0,0.32057687]
[1763061807232,0.00186943,98957.0,98956.0,0.64357687]
[1763061807437,0.0002,98980.0,98956.0,0.36625]
[1763061807629,0.0002,98980.0,98979.0,0.10686]
[1763061808282,0.0002,98980.0,98979.0,0.06386]
[1763061808453,0.0002,98980.0,98979.0,0.04605]
[1763061809082,0.0002,98980.0,98979.0,0.11877]
[1763061809282,0.0002,98980.0,98979.0,0.04605]
[1763061810712,0.0002,98980.0,98979.0,0.10229]